bitfinex/quotes_ETHUSD_20250720
["timestamp","ask_amount","ask_price","bid_price","bid_amount"]
[1752977749507,3.1384,3609.8,3609.7,0.4722]
[1752977749709,3.1384,3609.8,3609.4,3.24269407]
[1752977749886,3.1384,3609.8,3609.5,0.4292]
[1752977750097,3.1384,3609.8,3609.5,3.1996572]
[1752977750638,3.1384,3609.8,3609.5,0.4292]
[1752977750857,0.55,3609.7,3609.3,0.795]
[1752977751140,0.1384,3609.3,3609.0,0.8288]
[1752977751348,0.1384,3609.3,3609.0,4.02884568]
[1752977751519,0.1384,3609.1,3609.0,4.02884568]
[1752977751919,0.1384,3609.4,3609.0,1.258]
[1752977752150,0.1384,3609.4,3609.3,2.77062034]
[1752977752833,0.1384,3609.4,3609.3,3.19982034]
[1752977753410,0.1384,3609.4,3609.3,0.4292]
[1752977753605,0.1384,3609.4,3609.3,3.19982034]
[1752977754360,0.1384,3609.4,3609.3,0.4292]
[1752977754561,0.1384,3609.4,3609.3,3.19982034]
[1752977754720,0.1384,3609.4,3609.3,0.4292]
[1752977754917,0.1384,3609.4,3609.0,3.59964359]
[1752977755462,0.1384,3609.4,3609.2,2.7706941]
[1752977755964,0.1384,3609.4,3609.0,0.8288]
[1752977756461,0.1384,3609.4,3609.0,1.258]
[1752977756670,0.1384,3609.4,3609.0,0.8288]
[1752977756970,0.1384,3609.4,3609.1,3.19995796]
[1752977757341,0.1384,3609.4,3609.2,0.4292]
[1752977757857,0.1384,3609.4,3609.0,0.8288]
[1752977758060,3.2371378,3610.5,3609.2,0.8288]
[1752977758061,0.002,3610.2,3609.2,0.8288]
[1752977758243,0.002,3610.2,3610.1,2.77000637]
[1752977758570,0.002,3610.2,3610.1,3.59880637]
[1752977758769,0.002,3610.2,3610.1,4.02800637]
[1752977759072,0.002,3610.2,3610.1,5.13102186]
[1752977764501,0.002,3610.2,3610.1,9.38972192]
[1752977764803,0.002,3610.2,3610.1,9.36202186]
[1752977770581,1e-08,3610.2,3610.1,9.36202186]
[1752977770800,1e-08,3610.2,3610.1,5.13102186]
[1752977771004,1e-08,3610.2,3610.1,9.36102186]
[1752977772186,0.042,3610.9,3610.8,2.76946936]
[1752977772500,0.042,3610.9,3610.8,11.24484979]
[1752977772651,0.042,3610.9,3610.8,11.81244979]
[1752977773144,0.042,3610.9,3610.8,13.41434924]
[1752977773500,0.002,3611.2,3611.1,2.76923928]
[1752977773784,0.002,3611.2,3611.1,10.78653167]
[1752977773983,0.002,3611.2,3611.1,13.52480025]
[1752977775284,0.002,3611.2,3611.1,9.29180025]
[1752977775583,0.002,3611.2,3611.1,13.52380025]
[1752977776166,0.002,3611.2,3611.1,9.29180025]
[1752977776365,0.002,3611.2,3611.1,13.52380025]
[1752977778067,0.002,3611.2,3611.1,13.52280025]
[1752977778285,0.002,3611.2,3611.1,6.29180025]
[1752977778585,0.002,3611.2,3611.1,4.232]
[1752977778785,0.002,3611.2,3611.1,7.00123928]
[1752977779358,0.002,3611.2,3611.1,2.76923928]
[1752977779553,0.002,3611.2,3611.1,7.00023928]
[1752977781590,0.002,3611.2,3611.1,7.44283928]
[1752977781886,0.002,3611.2,3611.1,8.50559706]
[1752977782870,0.002,3611.2,3611.1,8.06299706]
[1752977783094,0.002,3611.2,3611.1,7.00023928]
[1752977783886,0.002,3611.2,3611.1,3.21183928]
[1752977784193,0.002,3611.2,3611.1,8.40713167]
[1752977784361,0.002,3611.2,3611.1,8.37943928]
[1752977788507,0.002,3611.2,3611.1,4.15043928]
[1752977788709,0.002,3611.2,3611.1,9.8575171]
[1752977789088,0.002,3611.2,3611.1,5.6285171]
[1752977789288,0.002,3611.2,3611.1,9.8575171]
[1752977789996,0.002,3611.2,3611.1,12.8575171]
[1752977790308,0.002,3611.2,3611.1,8.6285171]
[1752977790511,0.002,3611.2,3611.1,8.1859171]
[1752977790818,0.002,3611.2,3611.1,2.90763928]
[1752977791115,0.002,3611.2,3611.1,7.13663928]
[1752977792504,0.4738,3611.2,3611.1,2.90763928]
[1752977793008,0.4738,3611.2,3611.1,7.13663928]
[1752977794020,0.002,3611.2,3611.1,7.13663928]
[1752977795296,0.002,3611.2,3611.1,8.65296943]
[1752977795480,0.002,3611.2,3611.1,9.92786943]
[1752977798110,1e-08,3611.2,3611.1,9.92786943]
[1752977801118,1e-08,3611.2,3611.1,5.69886943]
[1752977801296,1e-08,3611.2,3611.1,7.13563928]
[1752977801494,0.47180001,3611.2,3611.1,7.13563928]
[1752977803322,0.7502,3611.1,3610.9,0.001]
[1752977803512,0.7502,3611.1,3611.0,4.228]
[1752977803823,1.222,3611.1,3611.0,4.228]
[1752977804526,1.222,3611.1,3610.9,0.001]
[1752977804834,0.88475001,3611.0,3610.9,0.001]
[1752977805127,0.4718,3611.0,3610.9,0.001]
[1752977806111,3.79111597,3611.0,3610.9,0.001]
[1752977809559,0.4718,3611.0,3610.9,0.001]
[1752977810765,3.24111597,3611.0,3610.9,0.001]
[1752977810962,0.4718,3611.0,3610.9,0.001]
[1752977811814,3.79111597,3611.0,3610.9,0.001]
[1752977812036,4.52217024,3611.0,3610.9,0.001]
[1752977812516,7.52217024,3611.0,3610.9,0.001]
[1752977812729,8.27477024,3611.0,3610.9,0.001]
[1752977814624,4.94745427,3611.0,3610.9,0.001]
[1752977817382,7.71677024,3611.0,3610.9,0.001]
[1752977817722,8.26677024,3611.0,3610.9,0.001]
[1752977819581,5.49745427,3611.0,3610.9,0.001]
[1752977819756,8.26677024,3611.0,3610.9,0.001]
[1752977824089,12.49677024,3611.0,3610.9,0.001]
[1752977832754,1.94745427,3611.0,3610.9,0.001]
[1752977832959,4.9826,3611.0,3610.9,0.001]
[1752977833198,7.78,3611.0,3610.9,0.001]
[1752977834910,3.55,3611.0,3610.9,0.001]
[1752977835115,7.78,3611.0,3610.9,0.001]
[1752977835695,7.23,3611.0,3610.9,0.001]
[1752977836167,1e-08,3611.2,3611.0,2.76931597]
[1752977836365,7.23,3611.1,3611.0,3.23921597]
[1752977836564,7.23,3611.1,3611.0,2.76931597]
[1752977836799,0.13840001,3611.2,3611.1,2.76923928]
[1752977836963,0.13840001,3611.2,3611.1,3.80448202]
[1752977837166,0.13840001,3611.2,3611.1,4.27438202]
[1752977838602,0.13840001,3611.2,3611.1,1.03524274]
[1752977838810,0.13840001,3611.2,3610.9,3.09442005]
[1752977838973,0.13840001,3611.2,3611.1,0.4699]
[1752977839500,0.13840001,3611.2,3610.9,3.09443365]
[1752977839706,0.13840001,3611.2,3610.9,0.32504372]
[1752977840111,0.13840001,3611.2,3610.9,3.09443563]
[1752977840334,0.13840001,3611.2,3611.0,0.43716356]
[1752977841221,0.13840001,3611.2,3611.0,3.64477087]
[1752977841514,0.13840001,3611.2,3611.0,0.87546356]
[1752977841719,0.433,3611.1,3610.9,0.001]
[1752977841888,10.54831597,3611.0,3610.9,0.001]
[1752977842298,10.98131597,3611.0,3610.9,0.001]
[1752977844312,1e-08,3611.2,3610.9,3.21255803]
[1752977844510,1e-08,3611.2,3611.1,2.76923928]
[1752977845102,1e-08,3611.2,3611.1,3.20753928]
[1752977846913,1e-08,3611.2,3611.1,4.02533928]
[1752977847217,1e-08,3611.2,3611.0,0.4030358]
[1752977847515,1e-08,3611.2,3610.9,0.8188]
[1752977847922,1e-08,3611.2,3611.1,2.76923928]
[1752977848131,1e-08,3611.2,3611.1,5.98079731]
[1752977848298,1e-08,3611.2,3611.1,6.41909731]
[1752977849423,1e-08,3611.2,3611.1,7.21409731]
[1752977849599,1e-08,3611.2,3611.1,8.35094]
[1752977849933,1e-08,3611.2,3611.1,12.58094]
[1752977851188,1e-08,3611.2,3611.1,12.44254]
[1752977852615,1e-08,3611.2,3611.1,8.21254]
[1752977852813,1e-08,3611.2,3611.1,12.44354]
[1752977853026,1e-08,3611.2,3611.1,14.04511441]
[1752977854695,1e-08,3611.2,3611.1,14.04311441]
[1752977856749,1e-08,3611.2,3611.1,9.22998197]
[1752977858815,1e-08,3611.2,3611.1,14.04311441]
[1752977859951,1e-08,3611.7,3611.6,3.5582559]
[1752977860157,1e-08,3611.7,3611.6,13.23310857]
[1752977860358,1e-08,3611.7,3611.6,13.67140857]
[1752977860559,1e-08,3611.7,3611.6,16.67140857]
[1752977860761,0.042,3611.9,3611.6,16.67140857]
[1752977860762,0.042,3611.9,3611.8,6.55810258]
[1752977860919,0.042,3611.9,3611.8,12.7321137]
[1752977861121,0.042,3611.9,3611.8,13.3088137]
[1752977861982,0.042,3611.9,3611.8,9.8705137]
[1752977862279,0.042,3611.9,3611.8,10.3088137]
[1752977862988,0.042,3611.9,3611.8,10.3078137]
[1752977865059,0.042,3611.9,3611.8,10.3068137]
[1752977867402,0.042,3611.9,3611.8,5.6405137]
[1752977867552,0.042,3611.9,3611.8,7.13510258]
[1752977868795,0.042,3611.9,3611.8,7.13410258]
[1752977869354,0.042,3611.9,3611.8,2.90710258]
[1752977869555,0.042,3611.9,3611.8,7.13410258]
[1752977870309,0.4777,3611.9,3611.8,4.227]
[1752977870449,0.042,3611.9,3611.8,2.76870258]
[1752977870654,0.042,3611.9,3611.8,2.90710258]
[1752977872369,0.042,3611.9,3611.8,7.13410258]
[1752977876918,0.042,3611.9,3611.8,9.00866267]
[1752977877126,0.042,3611.9,3611.8,8.56926267]
[1752977877605,0.042,3611.9,3611.8,9.00866267]
[1752977879016,0.042,3611.9,3611.8,4.78166267]
[1752977879174,0.042,3611.9,3611.8,9.03634969]
[1752977879378,0.042,3611.9,3611.8,9.00866267]
[1752977883516,0.002,3612.0,3611.9,2.76862593]
[1752977883685,0.002,3612.0,3611.9,5.09402088]
[1752977883885,0.002,3612.0,3611.9,5.06633463]
[1752977888725,0.002,3612.0,3611.9,4.62693463]
[1752977888916,0.4377,3612.0,3611.9,6.99562593]
[1752977889110,0.002,3612.0,3611.9,6.99562593]
[1752977890347,0.4377,3612.0,3611.9,4.227]
[1752977890936,0.4377,3612.0,3611.9,6.99562593]
[1752977893014,0.4377,3612.0,3611.9,2.76862593]
[1752977893252,0.4377,3612.0,3611.9,6.99562593]
[1752977893724,0.4377,3612.0,3611.9,2.76862593]
[1752977894047,0.4377,3612.0,3611.9,6.99562593]
[1752977896454,0.4377,3612.0,3611.9,4.227]
[1752977896834,0.4377,3612.0,3611.8,2.90707996]
[1752977897052,0.002,3612.0,3611.9,4.227]
[1752977897426,0.002,3612.0,3611.9,6.99562593]
[1752977897734,0.4377,3612.0,3611.9,6.99562593]
[1752977897946,0.4377,3612.0,3611.8,0.1384]
[1752977898262,0.002,3612.0,3611.9,4.227]
[1752977898560,0.7958,3611.9,3611.6,0.001]
[1752977898742,0.35663214,3611.8,3611.7,4.227]
[1752977898929,0.4357,3611.8,3611.7,4.227]
[1752977899681,0.4357,3611.8,3611.6,0.001]
[1752977899981,0.4525,3611.7,3611.6,0.001]
[1752977903769,3.97527924,3611.7,3611.6,0.001]
[1752977903951,1.2065,3611.7,3611.6,0.001]
[1752977904150,1.88108059,3611.7,3611.6,0.001]
[1752977905362,4.64985983,3611.7,3611.6,0.001]
[1752977906105,1.88108059,3611.7,3611.6,0.001]
[1752977906303,4.64985983,3611.7,3611.6,0.001]
[1752977908798,5.19985983,3611.7,3611.6,0.001]
[1752977909002,8.19985983,3611.7,3611.6,0.001]
[1752977910670,12.42685983,3611.7,3611.6,0.001]
[1752977912084,0.754,3611.7,3611.6,0.001]
[1752977912281,4.227,3611.8,3611.6,0.001]
[1752977912696,0.4525,3611.7,3611.6,0.001]
[1752977917799,0.4525,3611.7,3611.6,2.7698559]
[1752977917995,0.8071,3611.9,3611.7,2.76877924]
[1752977918194,0.002,3612.0,3611.9,2.76862593]
[1752977918583,0.002,3612.0,3611.9,3.23522593]
[1752977919589,0.002,3612.0,3611.9,7.46222593]
[1752977921822,0.002,3612.0,3611.9,6.99562593]
[1752977923893,0.002,3612.0,3611.9,7.46222593]
[1752977924093,0.002,3612.0,3611.9,9.23353464]
[1752977927704,0.002,3612.0,3611.9,10.05783464]
[1752977934120,0.002,3612.0,3611.9,10.02513464]
[1752977937464,0.002,3612.0,3611.9,10.02613464]
[1752977938160,0.002,3612.0,3611.9,9.59223464]
[1752977938359,0.002,3612.0,3611.9,10.02613464]
[1752977940133,0.002,3612.0,3611.9,10.02313464]
[1752977940330,0.002,3612.0,3611.9,5.79913464]
[1752977940534,0.002,3612.0,3611.9,10.02313464]
[1752977940875,0.002,3612.0,3611.9,2.76962593]
[1752977941063,0.002,3612.0,3611.9,6.99362593]
[1752977941064,0.4445,3612.0,3611.9,6.99362593]
[1752977941251,0.002,3612.0,3611.9,6.99362593]
[1752977942070,0.002,3612.0,3611.9,2.76962593]
[1752977942466,0.4445,3612.0,3611.9,2.76962593]
[1752977942681,0.002,3612.0,3611.9,0.001]
[1752977943033,0.4445,3612.0,3611.9,0.001]
[1752977943351,1.219,3612.0,3611.9,0.001]
[1752977943669,1.63157705,3612.0,3611.9,0.001]
[1752977943872,1.219,3612.0,3611.9,0.001]
[1752977946472,1.219,3612.0,3611.9,2.76962593]
[1752977946771,1.219,3612.0,3611.9,0.001]
[1752977948977,4.53754928,3612.0,3611.9,0.001]
[1752977949171,1.219,3612.0,3611.9,0.001]
[1752977950095,0.002,3612.0,3611.9,0.001]
[1752977950398,0.002,3612.0,3611.9,6.99362593]
[1752977950693,0.002,3612.0,3611.9,9.66669942]
[1752977951393,0.002,3612.0,3611.9,9.23279942]
[1752977951604,0.002,3612.0,3611.9,7.13202593]
[1752977951810,0.4445,3612.0,3611.9,6.99362593]
[1752977952375,0.4445,3612.0,3611.9,2.76962593]
[1752977952579,0.4445,3612.0,3611.9,0.001]
[1752977953887,3.76304928,3612.0,3611.9,0.001]
[1752977954217,5.24340003,3612.0,3611.9,0.001]
[1752977955218,8.24340003,3612.0,3611.9,0.001]
[1752977959218,12.46740003,3612.0,3611.9,0.001]
[1752977961229,20.36740003,3612.0,3611.9,0.001]
[1752977964110,20.57719299,3612.0,3611.9,0.001]
[1752977966697,16.35319299,3612.0,3611.9,0.001]
[1752977967018,20.57719299,3612.0,3611.9,0.001]
[1752977967244,15.59340003,3612.0,3611.9,0.001]
[1752977967589,16.14340003,3612.0,3611.9,0.001]
[1752977967826,20.36740003,3612.0,3611.9,0.001]
[1752977968227,19.81740003,3612.0,3611.9,0.001]
[1752977968451,20.36740003,3612.0,3611.9,0.001]
[1752977969923,13.37485075,3612.0,3611.9,0.001]
[1752977970260,20.36740003,3612.0,3611.9,0.001]
[1752977970823,4.72285075,3612.0,3611.9,0.001]
[1752977971010,10.54454928,3612.0,3611.9,0.001]
[1752977971214,7.776,3612.0,3611.9,0.001]
[1752977972719,10.54454928,3612.0,3611.9,0.001]
[1752977972934,10.98734928,3612.0,3611.9,0.001]
[1752977973135,8.2188,3612.0,3611.9,0.001]
[1752977973331,10.98734928,3612.0,3611.9,0.001]
[1752977973663,12.44194666,3612.0,3611.9,0.001]
[1752977973827,13.23224666,3612.0,3611.9,0.001]
[1752977974240,13.23224666,3612.0,3611.6,0.001]
[1752977974241,4.10907924,3611.7,3611.6,0.001]
[1752977974542,11.33207924,3611.7,3611.6,0.001]
[1752977974713,11.77487924,3611.7,3611.6,0.001]
[1752977974914,13.65175078,3611.7,3611.6,0.001]
[1752977978142,13.65175078,3611.7,3611.6,1e-08]
[1752977978143,21.55175078,3611.7,3611.6,1e-08]
[1752977978351,21.69603268,3611.7,3611.6,1e-08]
[1752977980265,21.95410786,3611.7,3611.6,1e-08]
[1752977983737,21.95413387,3611.7,3611.6,1e-08]
[1752977984135,1.3783,3610.9,3610.8,0.001]
[1752977984461,22.48039958,3610.9,3610.8,1e-08]
[1752977984627,22.92319958,3610.9,3610.8,1e-08]
[1752977985749,19.71449267,3610.9,3610.8,1e-08]
[1752977986433,19.9220375,3610.9,3610.8,1e-08]
[1752977986647,21.03705492,3610.9,3610.8,1e-08]
[1752977987370,21.17395629,3610.9,3610.8,1e-08]
[1752977988785,24.3826632,3610.9,3610.8,1e-08]
[1752977989840,24.64041276,3610.9,3610.8,1e-08]
[1752977990884,24.64039662,3610.9,3610.8,1e-08]
[1752977992538,24.64039662,3610.9,3609.6,0.001]
[1752977992539,3.32031332,3609.7,3609.6,0.001]
[1752977992738,10.54431332,3609.7,3609.6,0.001]
[1752977992961,10.97481332,3609.7,3609.6,0.001]
[1752977994088,10.97481332,3609.7,3609.4,0.001]
[1752977994089,7.10616682,3609.5,3609.4,0.001]
[1752977994246,3.3206971,3609.2,3609.1,0.04]
[1752977994580,10.5446971,3609.2,3609.1,0.04]
[1752977994879,10.9751971,3609.2,3609.1,0.04]
[1752977995288,6.32108099,3608.7,3608.5,0.001]
[1752977995485,10.54508099,3608.7,3608.5,0.001]
[1752977995673,12.38575808,3608.7,3608.5,0.001]
[1752977995871,7.73125808,3608.7,3608.5,0.001]
[1752977996073,11.95525808,3608.7,3608.5,0.001]
[1752977996281,7.73125808,3608.7,3608.5,0.001]
[1752977996584,10.54508099,3608.7,3608.6,0.4641]
[1752977996789,10.54508099,3608.7,3608.6,0.001]
[1752977998258,10.97558099,3608.7,3608.6,0.001]
[1752977998882,10.54508099,3608.7,3608.6,0.001]
[1752977999161,11.87668808,3608.7,3608.6,0.001]
[1752977999891,7.775,3608.7,3608.6,0.001]
[1752978000204,3.0,3608.7,3608.6,1.2244]
[1752978000357,7.225,3608.7,3608.6,1.2244]
[1752978000551,7.775,3608.7,3608.6,1.2244]
[1752978000966,4.225,3608.8,3608.6,1.2244]
[1752978001192,0.1384,3608.7,3608.6,0.7613]
[1752978001395,0.1384,3608.7,3608.6,3.53245778]
[1752978001706,0.1384,3608.7,3608.6,3.99555778]
[1752978002405,0.1384,3608.7,3608.6,4.99321534]
[1752978004196,0.1384,3608.7,3608.6,2.22205756]
[1752978004496,0.1384,3608.7,3608.6,1.2244]
[1752978005056,2.7706042,3609.4,3608.6,1.2244]
[1752978005057,7.9,3609.5,3608.6,1.2244]
[1752978005378,0.1384,3609.2,3608.8,0.7806]
[1752978005701,3.32078446,3609.1,3608.8,0.7806]
[1752978006014,0.55,3609.1,3608.8,0.7806]
[1752978006208,0.55,3609.1,3608.8,1.2437]
[1752978006405,0.55,3609.2,3608.9,0.4631]
[1752978006610,0.55,3609.2,3608.8,0.7806]
[1752978006811,3.55,3609.2,3609.0,0.4631]
[1752978007488,3.55,3609.2,3608.8,0.7806]
[1752978007695,6.32074942,3609.2,3608.8,1.2437]
[1752978008521,5.31213014,3609.2,3608.6,0.001]
[1752978008698,0.55,3608.7,3608.6,0.001]
[1752978009784,2.77106735,3608.8,3608.6,0.001]
[1752978009785,0.55,3608.8,3608.6,0.4641]
[1752978010113,0.55,3608.8,3608.7,0.4631]
[1752978011002,6.32100421,3608.8,3608.7,0.4631]
[1752978011206,0.1384,3608.7,3608.6,0.001]
[1752978011517,0.1384,3608.7,3608.6,0.4641]
[1752978011718,0.1384,3608.7,3608.6,0.001]
[1752978011937,3.45948099,3608.7,3608.6,0.001]
[1752978012322,0.6884,3608.7,3608.6,0.001]
[1752978013186,0.6884,3608.7,3608.6,0.4641]
[1752978017094,0.1384,3608.7,3608.6,0.4641]
[1752978017294,0.1384,3608.7,3608.6,4.05555778]
[1752978017795,3.0,3609.3,3608.9,2.77092679]
[1752978017991,3.0,3609.4,3609.0,0.8203]
[1752978018194,3.0,3609.4,3609.1,0.4631]
[1752978018395,0.55,3609.3,3609.1,0.4631]
[1752978018592,0.55,3609.3,3609.2,0.4631]
[1752978018829,0.55,3609.3,3609.0,0.8203]
[1752978019029,0.55,3609.3,3609.1,0.4631]
[1752978024206,0.552,3609.3,3609.1,0.4631]
[1752978024406,0.002,3609.3,3609.2,0.4578]
[1752978024634,0.552,3609.3,3609.2,0.4578]
[1752978025724,0.002,3609.3,3609.2,0.4578]
[1752978025920,0.002,3609.3,3609.2,3.2284971]
[1752978026243,0.002,3609.3,3609.2,7.6712664]
[1752978026807,0.002,3609.3,3609.2,4.9005693]
[1752978027146,0.002,3609.3,3609.2,4.45717681]
[1752978027945,0.002,3609.3,3609.2,5.91047971]
[1752978028144,0.002,3609.3,3609.1,4.224]
[1752978028351,0.1384,3609.2,3609.0,4.224]
[1752978028551,0.55,3609.1,3608.8,0.4578]
[1752978028751,0.1384,3609.0,3608.9,4.224]
[1752978028953,0.1384,3609.0,3608.7,0.8238]
[1752978030532,0.1384,3609.0,3608.6,4.225]
[1752978030762,0.55,3608.9,3608.6,0.001]
[1752978031064,6.32108099,3608.7,3608.6,0.001]
[1752978031551,6.78448099,3608.7,3608.6,0.001]
[1752978034446,7.61358099,3608.7,3608.6,0.001]
[1752978034828,11.83758099,3608.7,3608.6,0.001]
[1752978035075,13.29843292,3608.7,3608.6,0.001]
[1752978039131,6.32146499,3608.2,3608.1,0.041]
[1752978039360,10.54546499,3608.2,3608.1,0.041]
[1752978039741,11.00886499,3608.2,3608.1,0.041]
[1752978040136,2.77115778,3608.6,3608.1,0.041]
[1752978040339,4.774,3608.5,3608.1,0.4988]
[1752978040529,4.774,3608.5,3608.2,0.4578]
[1752978040734,0.1384,3608.4,3608.3,4.01278818]
[1752978044484,3.55,3609.0,3608.6,2.77115548]
[1752978044680,3.55,3609.0,3608.3,0.7836]
[1752978044858,0.1384,3608.6,3608.4,3.22905629]
[1752978045061,0.1384,3608.6,3608.4,2.77125629]
[1752978045274,0.1384,3608.6,3608.5,0.4578]
[1752978047287,0.1384,3608.6,3608.5,3.22903458]
[1752978047686,0.1384,3608.6,3608.5,0.4578]
[1752978048194,0.1384,3608.6,3608.5,3.22903458]
[1752978049299,0.1384,3608.6,3608.5,2.77123458]
[1752978049455,0.1384,3608.6,3608.4,5.985374]
[1752978049654,0.1384,3608.6,3608.4,6.443174]
[1752978050103,0.1384,3608.6,3608.5,2.77123458]
[1752978050402,0.1384,3608.6,3608.5,3.21223458]
[1752978051703,0.1384,3608.6,3608.5,0.441]
[1752978052209,0.1384,3608.6,3608.5,3.21223458]
[1752978052509,0.1384,3608.6,3608.5,7.43623458]
[1752978052670,0.002,3609.1,3609.0,2.77085065]
[1752978052870,0.002,3609.1,3609.0,3.54625065]
[1752978053098,0.002,3609.1,3609.0,3.98725065]
[1752978053404,0.002,3609.1,3609.0,4.01495915]
[1752978053605,0.002,3609.1,3609.0,5.45120402]
[1752978058893,0.002,3609.1,3609.0,5.42349552]
[1752978059219,0.002,3609.1,3609.0,3.54625065]
[1752978059365,0.002,3609.1,3609.0,7.76925065]
[1752978059766,0.002,3609.1,3609.0,8.21025065]
[1752978061095,0.002,3609.1,3609.0,3.98725065]
[1752978061565,0.002,3609.1,3609.0,8.21025065]
[1752978061757,0.002,3609.1,3609.0,9.64362467]
[1752978062801,0.002,3609.1,3609.0,9.78202467]
[1752978068598,0.002,3609.1,3609.0,12.78202467]
[1752978069829,0.002,3609.3,3609.2,2.7706971]
[1752978070040,0.002,3609.3,3609.2,7.82980407]
[1752978070189,1e-08,3609.3,3609.2,10.26424893]
[1752978070393,0.002,3609.9,3609.2,10.26424893]
[1752978070394,0.002,3609.9,3609.8,3.57963657]
[1752978070589,0.002,3609.9,3609.8,11.04342852]
[1752978070830,0.002,3609.9,3609.8,11.59512616]
[1752978071135,0.002,3609.9,3609.8,12.29612795]
[1752978073538,0.002,3609.9,3609.8,0.9478]
[1752978073839,0.4596,3609.9,3609.8,4.222]
[1752978074962,0.598,3609.9,3609.8,4.222]
[1752978078660,0.598,3609.9,3609.5,5.98453799]
[1752978078872,0.598,3609.9,3609.6,4.222]
[1752978079365,0.598,3609.9,3609.5,5.98453799]
[1752978079678,0.598,3609.9,3609.6,4.222]
[1752978080099,0.598,3609.9,3609.6,6.99237524]
[1752978080976,0.598,3609.9,3609.6,4.222]
[1752978081657,0.598,3609.9,3609.7,4.222]
[1752978081855,0.598,3609.9,3609.5,3.21408959]
[1752978081856,0.598,3609.9,3609.8,4.222]
[1752978082855,0.598,3609.9,3609.8,4.221]
[1752978083574,0.598,3609.9,3609.5,5.98455164]
[1752978083773,0.1404,3609.9,3609.6,4.221]
[1752978083949,0.4686,3609.8,3609.6,4.221]
[1752978084360,0.4686,3609.8,3609.7,4.221]
[1752978084717,0.1404,3609.9,3609.7,4.221]
[1752978085050,0.609,3609.9,3609.7,4.221]
[1752978085276,0.1404,3609.9,3609.7,4.221]
[1752978086188,0.002,3609.9,3609.8,0.4737]
[1752978086488,0.002,3609.9,3609.7,8.27398307]
[1752978086684,0.002,3609.9,3609.7,0.809]
[1752978086894,0.002,3609.9,3609.8,4.221]
[1752978089202,0.4706,3609.9,3609.8,4.221]
[1752978089507,0.8905,3609.8,3609.6,4.221]
[1752978090006,0.4686,3609.7,3609.6,4.221]
[1752978090580,0.4686,3609.7,3609.5,4.221]
[1752978092422,0.607,3609.6,3609.5,4.221]
[1752978092574,0.607,3609.6,3609.3,0.001]
[1752978092575,4.07264358,3609.4,3609.3,0.001]
[1752978093070,4.54124358,3609.4,3609.3,0.001]
[1752978093291,1.7707,3609.4,3609.3,0.001]
[1752978093901,7.54124358,3609.4,3609.3,0.001]
[1752978095704,4.7707,3609.4,3609.3,0.001]
[1752978095910,11.76224358,3609.4,3609.3,0.001]
[1752978096472,4.3021,3609.4,3609.3,0.001]
[1752978096673,7.54124358,3609.4,3609.3,0.001]
[1752978097907,9.78450729,3609.4,3609.3,0.001]
[1752978103319,14.00550729,3609.4,3609.3,0.001]
[1752978103642,3.0,3609.4,3609.3,0.001]
[1752978103802,3.0,3609.4,3609.3,3.21508959]
[1752978103803,0.1384,3609.4,3609.3,3.21508959]
[1752978104115,0.002,3609.9,3609.7,2.77030797]
[1752978104443,0.55,3609.8,3609.4,3.21408959]
[1752978104614,0.55,3609.8,3609.3,0.001]
[1752978104615,0.55,3609.5,3609.3,0.001]
[1752978104939,0.6884,3609.4,3609.3,0.001]
[1752978105113,1.157,3609.4,3609.3,0.001]
[1752978106049,3.92754358,3609.4,3609.3,0.001]
[1752978106203,9.10534334,3609.4,3609.3,0.001]
[1752978107362,7.71344358,3609.4,3609.3,0.001]
[1752978107516,11.93444358,3609.4,3609.3,0.001]
[1752978108152,9.1639,3609.4,3609.3,0.001]
[1752978108625,7.9094,3609.4,3609.3,0.001]
[1752978109012,0.1384,3609.4,3609.3,0.001]
[1752978109254,0.1384,3609.4,3609.3,0.92130896]
[1752978109452,0.1384,3609.4,3609.3,3.6919293]
[1752978110246,0.1384,3609.7,3609.6,2.77034553]
[1752978110461,0.1384,3609.7,3609.6,5.98443512]
[1752978111080,0.1384,3609.7,3609.6,3.65878959]
[1752978111647,0.1384,3609.7,3609.6,7.39392622]
[1752978111858,0.1404,3609.9,3609.8,2.77023657]
[1752978112166,0.002,3609.9,3609.8,2.77023657]
[1752978112372,0.002,3609.9,3609.8,3.21493657]
[1752978113754,0.002,3609.9,3609.8,4.02013657]
[1752978114098,0.002,3609.9,3609.8,5.55578316]
[1752978117370,0.002,3610.0,3609.9,2.77015983]
[1752978117574,0.002,3610.0,3609.9,8.40616142]
[1752978117770,0.002,3610.0,3609.9,8.37845983]
[1752978121257,0.002,3610.0,3609.9,7.93375983]
[1752978121589,0.002,3610.0,3609.9,9.85264675]
[1752978122191,0.002,3610.0,3609.9,10.29734675]
[1752978124202,0.002,3610.0,3609.9,6.07734675]
[1752978124505,0.002,3610.0,3609.9,4.82744675]
[1752978124680,0.002,3610.0,3609.9,9.04644675]
[1752978125627,0.002,3610.0,3609.9,4.82744675]
[1752978125799,0.002,3610.0,3609.9,9.04644675]
[1752978126299,0.002,3610.0,3609.9,9.49114675]
[1752978127918,0.002,3610.0,3609.9,9.04644675]
[1752978128302,0.002,3610.0,3609.9,9.49114675]
[1752978128486,0.002,3610.0,3609.9,10.31424675]
[1752978132134,0.002,3610.6,3610.5,2.76969948]
[1752978132333,0.002,3610.6,3610.5,11.02588907]